Cogmind - Beta 13 @@@ ROGUE MODE // 2024.04.01 @ 08:14:00 Player: Mr_box Result: Destroyed by as-11869 with Assembled Heavy Rifle Performance ------------- Evolutions (1) 500 Regions Visited (3) 600 Robots Destroyed (39) 195 Value Destroyed (878) 878 Prototype IDs (0) 0 Alien Tech Used (0) 0 Bonus (36) 36 TOTAL SCORE: 2209 Bonus ------- High Alert Combat Kills 36 Cogmind --------- Core Integrity 0/400 Matter 139/300 Energy 67/100 System Corruption 6% Temperature Cool (0) Movement Treading (240) Ox1 Location -9/Mines Parts ------- > --- POWER (1) -------- (None) > --- PROPULSION (2) --- Light Treads > --- UTILITY (3) ------ Large Storage Unit > --- WEAPON (3) ------- Assault Rifle Light Cannon > --- INVENTORY (15) --- Ion Engine Reinforced Ion Engine Light Treads Light Treads Improved Treads Heat Sink Large Storage Unit Medium Matter Pod (0) Peak State ------------ > --- POWER ------------ Improved Ion Engine > --- PROPULSION ------- Light Treads Light Treads > --- UTILITY ---------- Large Storage Unit Sensor Array Light Armor Plating > --- WEAPON ----------- Heavy Assault Rifle Heavy Assault Rifle Light Cannon > --- INVENTORY -------- Ion Engine Light Ion Engine Light Treads Light Treads Light Treads Light Treads Large Storage Unit Weapon Shielding Light Armor Plating Assault Rifle Assault Rifle Light Cannon Light Cannon Grenade Launcher [Rating: 13] Favorites ----------- Power Improved Ion Engine Engine Improved Ion Engine Propulsion Light Treads Treads Light Treads Leg Aluminum Leg Utility Large Storage Unit Device Sensor Array Storage Large Storage Unit Protection Light Armor Plating Weapon Light Cannon Energy Gun EM Pulse Gun Ballistic Gun Assault Rifle Ballistic Cannon Light Cannon Launcher Grenade Launcher Build | -11 -10 -9 -9 ------- Run | Yrd Mat Mat Min Slots Evolved 2 | . . 2 . Power . | . . . . Propulsion . | . . . . Utility 1 | . . 1 . Weapon 1 | . . 1 . Parts Attached 35 | 6 8 13 8 Power 4 | 1 2 1 . Engine 4 | 1 2 1 . Core . | . . . . Reactor . | . . . . Propulsion 9 | 2 2 2 3 Treads 7 | . 2 2 3 Leg 2 | 2 . . . Wheel . | . . . . Hover . | . . . . Flight . | . . . . Utility 9 | 1 2 6 . Device 4 | . . 4 . Storage 2 | 1 1 . . Processor . | . . . . Hackware . | . . . . Protection 3 | . 1 2 . Artifact . | . . . . Weapon 13 | 2 2 4 5 Energy Gun 2 | 2 . . . Energy Cannon . | . . . . Ballistic Gun 7 | . 2 2 3 Ballistic Cannon 3 | . . 2 1 Launcher 1 | . . . 1 Special Weapon . | . . . . Impact Weapon . | . . . . Slashing Weapon . | . . . . Piercing Weapon . | . . . . Special Melee Weapon . | . . . . Unidentified Prototypes . | . . . . Parts Lost 15 | . . 4 11 Power 1 | . . . 1 Propulsion 3 | . . . 3 Utility 5 | . . 3 2 Weapon 6 | . . 1 5 Highest Loss Streak 11 | . . 2 11 To Critical Strikes . | . . . . Average Slot Usage (%) 96 | . 98 97 76 Engine 11 | . 14 11 6 Treads 22 | . 22 22 19 Leg 1 | . 5 . . Device 6 | . . 10 4 Storage 12 | . 14 11 11 Protection 10 | . 12 9 6 Energy Gun 1 | . 5 . . Ballistic Gun 18 | . 22 16 12 Ballistic Cannon 10 | . . 16 15 Naked Turns . | . . . . Heaviest Build 40 | 12 32 40 38 Greatest Support 40 | 20 40 40 40 Greatest Overweight (x) 6 | 2 . . 6 Average Overweight (x) . | 1 . . . Largest Inventory Capacity 15 | 8 15 15 15 Average Capacity 12 | 7 9 15 15 Most Carried 15 | 8 13 15 15 Average Carried 11 | 5 8 13 13 Final Capacity 15 | 8 15 15 15 Final Carried 15 | 4 13 15 8 Class Distribution -------------------- 39% | Mutant 21% | Scavenger-Skirmisher 19% | Tank 12% | Scavenger-Tank 5% | Scavenger-Gunner Dominant Class ---------------- Mutant | -10/Materials Scavenger-Skirmisher | -9/Materials Scavenger-Skirmisher | -9/Mines Resources | -11 -10 -9 -9 ----------- Run | Yrd Mat Mat Min Matter Collected 1207 | 215 191 800 1 Remotely . | . . . . Salvage Created 1260 | . 276 939 45 Parts 80 | . 28 52 . Haulers Intercepted 5 | . 2 3 . Recyclers Shooed 1 | . . 1 . Parts Field Recycled . | . . . . Retrieved Matter . | . . . . Parts Self-Destructed . | . . . . Prevented . | . . . . Kills | -11 -10 -9 -9 ------- Run | Yrd Mat Mat Min Combat Hostiles Destroyed 35 | . 7 20 8 Guns 19 | . 7 9 3 Cannons 12 | . . 11 1 AOE 4 | . . . 4 Classes Destroyed 10 | . 4 5 1 Worker 1 | . . 1 . Builder 1 | . . 1 . Hauler 5 | . 2 3 . Recycler 1 | . . 1 . Watcher 4 | . 2 2 . Swarmer 10 | . 6 4 . Grunt 10 | . 1 9 . Brawler 1 | . . 1 . Sentry 6 | . . 6 . Assembled 8 | . . . 8 Best Kill Streak 8 | . 6 4 8 Combat Bots Only 8 | . 6 4 8 Max Kills in Single Turn 4 | . 2 2 4 Gunslinging 1 | . 1 . . Exploded 4 | . . . 4 Melee . | . . . . Uniques/NPCs Destroyed . | . . . . Combat | -11 -10 -9 -9 -------- Run | Yrd Mat Mat Min Hostile Shots Fired 225 | . 25 103 97 Missed 51 | . 7 27 17 Damage Taken 2700 | . 152 1003 1545 Core 421 | . 10 98 313 Absorbed by Shields . | . . . . Redirected to Shielding 44 | . . 13 31 Core Remaining (%) 98 | 100 96 . . Volleys Fired 102 | . 25 68 9 Largest 3 | . 2 3 3 Hottest 93 | . 80 93 93 Shots Fired 274 | . 50 202 22 Gun 169 | . 50 109 10 Cannon 104 | . . 93 11 Launcher 1 | . . . 1 Special . | . . . . Kinetic 257 | . 34 202 21 Thermal . | . . . . Explosive 1 | . . . 1 Electromagnetic 16 | . 16 . . Robot Hit Streak 11 | . 10 11 3 Robot Miss Streak 7 | . 5 7 3 Penetration Max . | . . . . Secondary Targets 1 | . 1 . . Max Gunslinging Chain 1 | . 1 . . Shots Hit Robots 142 | . 27 103 12 Core Hits 70 | . 12 41 17 Critical Kills . | . . . . Critical Parts Destroyed . | . . . . Critical Strikes 1 | . . 1 . Blast 1 | . . 1 . Melee Attacks . | . . . . Impact . | . . . . Slashing . | . . . . Piercing . | . . . . Sneak Attacks . | . . . . Combat Hostiles . | . . . . Follow-up Attacks . | . . . . Damage Inflicted 2522 | . 356 1690 476 Guns 1323 | . 356 861 106 Cannons 958 | . . 817 141 Explosions 229 | . . . 229 Melee . | . . . . Ramming 12 | . . 12 . Kinetic 2168 | . 243 1678 247 Thermal . | . . . . Explosive 229 | . . . 229 Electromagnetic 113 | . 113 . . Impact . | . . . . Slashing . | . . . . Piercing . | . . . . Highest Corruption 6 | . . . 6 Average Corruption 4 | . . . 4 Corruption Purged . | . . . . Corruption Blocked . | . . . . Effects 3 | . . . 3 Message Errors 1 | . . . 1 Matter Fused 1 | . . . 1 Weapon Failures 1 | . . . 1 Overload Shots . | . . . . Overflow Damage 9 | . . . 9 Projectiles 9 | . . . 9 Explosions . | . . . . Melee . | . . . . Knockbacks 7 | . . 4 3 Impact . | . . . . Kinetic 7 | . . 4 3 Secondary . | . . . . Self-Inflicted Damage . | . . . . Shots . | . . . . Rammed 4 | . . 4 . Targets Rammed 4 | . . 4 . Kicked . | . . . . Crushed . | . . . . Highest Temperature 167 | . 135 167 54 Average Temperature 50 | . 50 51 24 Received Heat Transfer 390 | . 6 384 . Siege Activations . | . . . . Robots Corrupted . | . . . . Combat Hostiles . | . . . . Parts Fried . | . . . . Impact Corruptions . | . . . . Robots Melted . | . . . . Combat Hostiles . | . . . . Parts Melted . | . . . . Heat Transferred . | . . . . Parts Sabotaged . | . . . . Parts Stolen . | . . . . Parts Stripped . | . . . . Power Chain Reactions . | . . . . Alert | -11 -10 -9 -9 ------- Run | Yrd Mat Mat Min Peak Influence 515 | . 286 515 162 Initial 162 | . . 45 162 Average 238 | . 187 299 129 Maximum Alert Level 2 | . 1 2 . Low Security (%) 38 | 100 42 25 100 Level 1 44 | . 57 44 . Level 2 16 | . . 29 . Level 3 . | . . . . Level 4 . | . . . . Level 5 . | . . . . High Security . | . . . . Max Security . | . . . . Squads Dispatched 1 | . . 1 . Investigation 1 | . . 1 . Extermination . | . . . . Reinforcement . | . . . . Assault . | . . . . Garrison . | . . . . Intercept . | . . . . Searches Triggered . | . . . . Construction Impeded . | . . . . Haulers Reinforced . | . . . . Active Scanning Responses . | . . . . Cargo Convoy Interrupts . | . . . . Stealth | -11 -10 -9 -9 --------- Run | Yrd Mat Mat Min Distress Signals 2 | . 1 1 . Communications Jammed . | . . . . Distress Signals . | . . . . Times Spotted 57 | . 18 24 15 Peak Tracking Total 11 | . 6 4 11 Tactical Retreats 2 | . 1 . 1 Traps | -11 -10 -9 -9 ------- Run | Yrd Mat Mat Min Traps Triggered 1 | . . 1 . Indirectly . | . . . . Trap Hack Attempts . | . . . . Triggered . | . . . . Disarmed . | . . . . Reprogrammed . | . . . . Reused . | . . . . Traps Extracted . | . . . . Installed . | . . . . Triggered . | . . . . Machines | -11 -10 -9 -9 ---------- Run | Yrd Mat Mat Min Machines Disabled 2 | . . 2 . Max in Single Turn 1 | . . 1 . Machines Repaired . | . . . . Machines Dismantled . | . . . . Machines Sabotaged . | . . . . Overloaded Fab Kills . | . . . . Hacking | -11 -10 -9 -9 --------- Run | Yrd Mat Mat Min Machines Accessed 5 | . 1 4 . Terminals 5 | . 1 4 . Fabricators . | . . . . Repair Stations . | . . . . Recycling Units . | . . . . Scanalyzers . | . . . . Garrison Access . | . . . . Total Hacks 11 | . 1 10 . Successful 4 | . . 4 . Failed 7 | . 1 6 . Catastrophic 2 | . 1 1 . Database Lockouts . | . . . . Manual . | . . . . Terminals 11 | . 1 10 . Fabricators . | . . . . Repair Stations . | . . . . Recycling Units . | . . . . Scanalyzers . | . . . . Garrison Access . | . . . . Terminal Hacks 4 | . . 4 . Level Access Points 1 | . . 1 . Terminal Index 1 | . . 1 . Locate Traps 1 | . . 1 . Registered Components 1 | . . 1 . Fabricator Hacks . | . . . . Repair Station Hacks . | . . . . Recycling Unit Hacks . | . . . . Scanalyzer . | . . . . Garrison Access Hacks . | . . . . Unauthorized Hacks . | . . . . Terminals . | . . . . Fabricators . | . . . . Repair Stations . | . . . . Recycling Units . | . . . . Scanalyzers . | . . . . Garrison Access . | . . . . Data Cores Recovered . | . . . . Used . | . . . . Hacking Detections 5 | . 1 4 . Full Trace Events . | . . . . Feedback Events . | . . . . Feedback Blocked . | . . . . Robot Schematics Acquired . | . . . . Robots Built . | . . . . Authchips . | . . . . Time . | . . . . Total Robot Build Rating . | . . . . Part Schematics Acquired . | . . . . Parts Built . | . . . . Authchips . | . . . . Time . | . . . . Total Part Build Rating . | . . . . Parts Repaired . | . . . . Time . | . . . . Parts Recycled . | . . . . Recycled Matter . | . . . . Retrieved Matter . | . . . . Retrieved Components . | . . . . Parts Scanalyzed . | . . . . Part Schematics Acquired . | . . . . Parts Damaged . | . . . . Bothacking | -11 -10 -9 -9 ------------ Run | Yrd Mat Mat Min Used RIF Installer . | . . . . Robots Hacked . | . . . . Non-combat . | . . . . Combat . | . . . . Robot Hacks Applied . | . . . . Relay Couplers Released . | . . . . Fabnet Peak Effective % . | . . . . Robots Rewired . | . . . . Allies Hacked . | . . . . Hacks Repelled . | . . . . Allies | -11 -10 -9 -9 -------- Run | Yrd Mat Mat Min Total Allies . | . . . . Largest Group . | . . . . Highest-Rated Group . | . . . . Highest-Rated Ally . | . . . . Total Orders . | . . . . Ally Attacks . | . . . . Total Damage . | . . . . Kills . | . . . . Allies Corrupted . | . . . . Allies Melted . | . . . . Intel | -11 -10 -9 -9 ------- Run | Yrd Mat Mat Min Robot Analysis Total . | . . . . Derelict Logs Recovered . | . . . . Drone Launches . | . . . . Drone Recoveries . | . . . . Exploration | -11 -10 -9 -9 ------------- Run | Yrd Mat Mat Min Turns Passed 1576 | 64 554 868 90 Spaces Moved 747 | 43 294 378 32 Core 42 | 41 . . 1 Treads 649 | . 240 378 31 Legs 56 | 2 54 . . Wheels . | . . . . Hover . | . . . . Flight . | . . . . Fastest Speed 50 | 50 120 160 160 Average Speed 154 | 113 152 160 168 Slowest Speed 350 | 150 160 160 350 Overloaded Moves . | . . . . Propulsion Burnouts . | . . . . Robots Hopped . | . . . . Cave-ins Triggered . | . . . . Exploration Rate (%) 28 | 4 48 43 17 Regions Visited 3 Branch Regions 1 Pre-discovered Areas . | . . . . Known Exits Taken . | . . . . Unknown Exits Taken 3 | 1 1 1 . Scrap Searched . | . . . . Spaces Dug . | . . . . Terrain Destroyed 8 | . . . 8 Melee . | . . . . Projectile . | . . . . AOE 8 | . . . 8 Terrain Rammed . | . . . . Walls Destroyed . | . . . . Machines Disabled . | . . . . Actions | -11 -10 -9 -9 --------- Run | Yrd Mat Mat Min Total 945 | 58 350 488 49 Wait 3 | . 1 2 . Move 744 | 42 293 377 32 Hop . | . . . . Pick Up 41 | 10 16 15 . Fast Attach . | . . . . Attach 20 | 6 1 6 7 Detach . | . . . . Swap 15 | . 7 7 1 Drop 16 | . 7 9 . Fire 102 | . 25 68 9 Melee . | . . . . Ram . | . . . . Kick . | . . . . Crush 4 | . . 4 . Escape Stasis . | . . . . Rewire . | . . . . Trap . | . . . . Miscellaneous . | . . . . Route ------- -11/Scrapyard -10/Materials -9/Materials (discovered 5 exits: Mat x3 / [*Min] / [*Sto]) -9/Mines History --------- Turn | Location | Event 28 | -11/Scrapyard | Discovered new exit (range 16) 65 | -11/Scrapyard | Entered Materials 307 | -10/Materials | Build established: Mutant 592 | -10/Materials | Discovered new exit (range 16) 619 | -10/Materials | Entered another Materials area 619 | -9/Materials | Evolved 2 slots: Utility x1, Weapon x1 1250 | -9/Materials | Discovered new exit (range 5) 1439 | -9/Materials | Identified exit to Materials 1448 | -9/Materials | Discovered new exit (range 16) 1487 | -9/Materials | Entered Mines 1490 | -9/Mines | Build established: Scavenger-Skirmisher 1514 | -9/Mines | Assembled infested the area 1555 | -9/Mines | Core integrity fell below 50% 1560 | -9/Mines | Core integrity fell below 20% 1577 | -9/Mines | Destroyed by as-11869 with Assembled Heavy Rifle Last Messages --------------- as-97057 destroyed. as-49291 destroyed. as-50029 destroyed. as-28852 sneak attacks. R-06 Scavenger system corrupted by crushing effect. R-06 Scavenger system terminally corrupted. Grenade Launcher severed. WER/1NLXXG,GJYJP7IY1SRK8YC>YFB2U Lgt. Treads destroyed. System corrupted: Assault Rifle jammed. as-54215 destroyed. as-70906 destroyed. as-28852 destroyed. Assault Rifle destroyed. System corrupted by crushing effect (+2). Acquired 1 matter. as-70215 knocked back. Lgt. Treads destroyed. U-05 Engineer lays Concrete. Map ----- +----------------------------------------------------+ | ?????????????????????????????????????????????????? | | ??????????????????????????????????????????????#??? | | ?????????????????????????????????????????????????? | | ????????????????????????????#????????????????????? | | ?????????????????????????????????????????????????? | | ????????????????????????????########?####????????? | | ??????????????????????????### ### ##???????? | | ??????????????????#??????## #???????? | | ???????????????? ????????# #???????? | | ????????????#????????????# #?????#?? | | ?????????????#??????????## ##???????? | | ???????????????????????## ##????????? | | ????????????????????#### ##?????????? | | ????????????????##### ##??????????? | | ???????????????## #####???????????? | | ???????????????# ##???????????????? | | ???????????????# % ##????#??????????? | | ???????????##### % ####?????#??????? | | ???????????# a #????????????? | | ???????????#% % % ?????????? | | ???????????# ###### % u ???????? | | ??????????????????# a % a ## ????????? | | ??????????????????## ] ##?# ???????? | | ???????????????????#### a% #???# ???????? | | ??????????????????????##% a ##????## ???????? | | ???????????????????????##@a #???????# ????????? | | ????????????????????????### #????#??? ????????? | | ??????????????????????????# #???????????????????? | | ??????????????????????????# #???????????????????? | | ??????????????????????????# #???????????????????? | | ??????????????????????????? ???????????????????? | | ??????????????????????????? ???????????????????? | | ?????????????????????????????????????????????????? | | ?????????????????????????????????????????????????? | | ?????????????????????????????????????????????????? | | ?????????????????????????????????????????????????? | | ?????????????????????????????????????????????????? | | ?????????????????????????????????????????????????? | | ?????????????????????????????????????????????????? | | ?????????????????????????????????????????????????? | | ?????????????????????????????????????????????????? | | ?????????????????????????????????????????????????? | | ?????????????????????????????????????????????????? | | ?????????????????????????????????????????????????? | | ?????????????????????????????????????????????????? | | ?????????????????????????????????????????????????? | | ?????????????????????????????????????????????????? | | ?????????????????????????????????????????????????? | | ?????????????????????????????????????????????????? | | ?????????????????????????????????????????????????? | +----------------------------------------------------+ Best States ------------- Heat Dissipation 48 Energy Generation 12 Energy Capacity 265 Matter Stores 300 Matter Capacity 300 Sight Range 16 Robot Scan Range 14 Terrain Scan Range 14 Terrain Scan Density 10 Armor Coverage 150 Weapon Shielding 33 Evasion (%) 55 Recoil Reduction 2 Item Schematics ----------------- None Robot Schematics ------------------ None Fabricated ------------ Nothing Alien Tech Used ----------------- None Achievements -------------- None Challenges ------------ None Game ------ Seed CatalystWardroneFlightbrick Manual? 0 Play Time 00:28:55 Cumulative 4.9 hours Start 2024.04.01 @ 07:44:05 End 2024.04.01 @ 08:14:00 Sessions 1 Manual Loads 0 Difficulty Rogue Special Mode None Game No. 5 Rogue 5 Adventurer 0 Explorer 0 Win Type - Total 0 Types 0/0/0/0/0/0/0/0/0 Lore% 3 Gallery% 8 Achievement% 6 Wizard Run 0 Options --------- Layout 1 ASCII 0 Keyboard 0 Movement Mouse Keybinds 0 Fullscreen 1 Font 24/Smallcaps Map View 50x35 Zoom Use 0% Tactical HUD 0 Map Filters NONE Filters NONE Steam 1 RUN: 678292de-8f7b-49b6-b28c-72c558b95fa6